bitfinex-derivatives/quotes_BTCF0:USTF0_20220103
["timestamp","ask_amount","ask_price","bid_price","bid_amount"]
[1641175964571,0.00565726,46925.0,46922.0,0.14033567]
[1641175965172,0.81843188,46925.0,46922.0,0.14033567]
[1641175965371,0.81843188,46925.0,46922.0,0.27633567]
[1641175965971,0.00565726,46924.0,46922.0,0.27633567]
[1641175966573,0.00565726,46924.0,46923.0,0.01208817]
[1641175967472,0.00565726,46924.0,46923.0,0.14908817]
[1641175967671,0.00565726,46925.0,46923.0,0.14908817]
[1641175968073,0.00565726,46925.0,46923.0,0.137]
[1641175968576,0.81843188,46925.0,46923.0,0.137]
[1641175968774,0.81843188,46925.0,46922.0,0.14033567]
[1641175969376,0.11402731,46924.0,46923.0,0.01208853]
[1641175970678,0.92680193,46924.0,46923.0,0.01208853]
[1641175971478,0.92680193,46924.0,46923.0,0.15208853]
[1641175972278,0.92680193,46924.0,46923.0,1.34897457]
[1641175972878,0.92680193,46924.0,46923.0,1.20897457]
[1641175973479,0.92680193,46924.0,46923.0,1.34897457]
[1641175974080,0.92780193,46924.0,46923.0,1.34897457]
[1641175974282,0.92780193,46924.0,46920.0,1.32941044]
[1641175974482,0.18,46921.0,46920.0,0.15783224]
[1641175974881,0.20131986,46921.0,46920.0,3.224e-05]
[1641175975082,0.2125,46920.0,46902.0,0.02131986]
[1641175975381,0.181,46917.0,46916.0,1.44921006]
[1641175975582,0.26371,46917.0,46908.0,1.44921006]
[1641175975783,0.001,46915.0,46908.0,1.44921006]
[1641175976481,0.18828586,46915.0,46908.0,1.44921006]
[1641175976882,0.11665591,46915.0,46906.0,1.94523567]
[1641175977282,0.11665591,46915.0,46908.0,0.009794]
[1641175977582,0.24965591,46915.0,46914.0,0.15242671]
[1641175977984,0.14128586,46915.0,46914.0,0.15242671]
[1641175978886,0.00828586,46915.0,46914.0,0.15242671]
[1641175979085,0.11665591,46915.0,46914.0,0.15242671]
[1641175979385,0.24965591,46915.0,46914.0,0.15242671]
[1641175980787,0.11665591,46915.0,46914.0,0.15242671]
[1641175981387,0.25065591,46915.0,46914.0,0.15242671]
[1641175981588,0.25065591,46915.0,46914.0,0.14033567]
[1641175982388,0.14228586,46915.0,46914.0,0.14033567]
[1641175982806,0.00828586,46915.0,46914.0,0.14033567]
[1641175983204,0.11665591,46915.0,46914.0,0.14033567]
[1641175983404,0.25065591,46915.0,46914.0,0.14033567]
[1641175984007,0.14228586,46915.0,46914.0,0.14033567]
[1641175984306,0.14128586,46915.0,46914.0,0.35374105]
[1641175984708,0.00828586,46915.0,46914.0,0.35374105]
[1641175985705,0.00728586,46915.0,46914.0,0.35374105]
[1641175986105,0.00728586,46920.0,46914.0,0.35374105]
[1641175986306,0.14033567,46926.0,46917.0,0.18]
[1641175986507,0.14033567,46926.0,46914.0,1.28874105]
[1641175986508,0.34752639,46925.0,46920.0,0.02131169]
[1641175986706,0.001,46921.0,46920.0,0.02131169]
[1641175987506,0.138,46921.0,46920.0,0.02131169]
[1641175987907,0.138,46921.0,46920.0,0.03340075]
[1641175988107,0.138,46921.0,46920.0,0.22319475]
[1641175988307,0.34752639,46928.0,46920.0,1.33819475]
[1641175988505,0.34752639,46928.0,46924.0,1.115]
[1641175988705,0.34752639,46928.0,46923.0,0.21110454]
[1641175989307,0.34752639,46928.0,46924.0,0.01208766]
[1641175989709,0.14033567,46932.0,46924.0,0.01208766]
[1641175990108,0.14033567,46932.0,46924.0,0.15242333]
[1641175990510,0.14033567,46932.0,46924.0,0.14033567]
[1641175991110,0.001,46927.0,46924.0,0.14033567]
[1641175991309,0.14033567,46932.0,46924.0,0.14033567]
[1641175991610,0.27933567,46932.0,46924.0,0.14033567]
[1641175992011,0.34752639,46929.0,46924.0,0.14033567]
[1641175993510,0.44052639,46929.0,46924.0,0.27533567]
[1641175993811,0.093,46929.0,46924.0,0.27533567]
[1641175995312,0.34752639,46930.0,46928.0,0.02130784]
[1641175995510,1.58322185,46942.0,46929.0,1.024794]
[1641175995711,1.40322185,46942.0,46938.0,0.18]
[1641175995910,1.40322185,46942.0,46938.0,0.24309]
[1641175996511,0.17213567,46949.0,46941.0,1.31630192]
[1641175996512,0.0318,46949.0,46941.0,1.31630192]
[1641175996711,1.33215597,46963.0,46943.0,0.18]
[1641175997212,0.18,46960.0,46944.0,0.010982]
[1641175997411,0.18,46956.0,46944.0,0.009794]
[1641175998213,0.18,46956.0,46951.0,0.14033567]
[1641175998411,0.001,46952.0,46951.0,0.14033567]
[1641175999112,0.28579898,46952.0,46951.0,0.14033567]
[1641175999513,0.28579898,46952.0,46951.0,0.27633567]
[1641175999713,0.10579898,46952.0,46951.0,0.27633567]
[1641176000716,0.10579898,46952.0,46951.0,0.14033567]
[1641176001417,0.10579898,46952.0,46951.0,0.27733567]
[1641176001618,0.11308381,46952.0,46951.0,0.27733567]
[1641176002821,0.11308381,46952.0,46951.0,0.14033567]
[1641176003421,0.11308381,46952.0,46951.0,0.28033567]
[1641176004721,0.11308381,46952.0,46951.0,0.14033567]
[1641176005422,0.11308381,46952.0,46951.0,0.28633567]
[1641176006823,0.11308381,46952.0,46951.0,0.14033567]
[1641176007524,0.11308381,46952.0,46951.0,0.29133567]
[1641176008824,0.11308381,46952.0,46951.0,0.14033567]
[1641176009423,0.11308381,46952.0,46951.0,0.29133567]
[1641176010826,0.38073381,46952.0,46946.0,0.14033567]
[1641176011027,0.18,46948.0,46937.0,0.02130421]
[1641176011226,0.18,46945.0,46932.0,1.33015386]
[1641176011425,0.0213084,46947.0,46932.0,1.33015386]
[1641176011426,0.20859323,46947.0,46932.0,1.33015386]
[1641176011629,0.20859323,46947.0,46935.0,2.71290029]
[1641176011826,0.18,46940.0,46935.0,2.71290029]
[1641176012033,0.001,46936.0,46935.0,0.84540029]
[1641176012630,0.001,46936.0,46934.0,0.28067134]
[1641176012631,0.82381017,46936.0,46934.0,0.28067134]
[1641176012831,0.001,46935.0,46934.0,0.28067134]
[1641176013033,0.00828483,46935.0,46934.0,0.28067134]
[1641176013431,0.92860915,46935.0,46934.0,0.42967134]
[1641176014634,0.82281017,46935.0,46934.0,0.28067134]
[1641176014833,0.00728483,46935.0,46934.0,0.28067134]
[1641176015233,0.00728483,46937.0,46934.0,0.28067134]
[1641176015433,0.00728483,46937.0,46934.0,0.43467134]
[1641176015635,0.00828483,46935.0,46934.0,0.43467134]
[1641176015836,0.001,46935.0,46934.0,0.43467134]
[1641176016034,0.00828483,46935.0,46934.0,0.43467134]
[1641176016838,0.00828483,46935.0,46934.0,0.28067134]
[1641176017037,0.00728483,46935.0,46934.0,0.28067134]
[1641176017537,0.00728483,46939.0,46934.0,0.43467134]
[1641176017738,0.00728483,46935.0,46934.0,0.43467134]
[1641176018037,0.001,46935.0,46934.0,0.43467134]
[1641176018239,0.00828483,46935.0,46934.0,0.43467134]
[1641176018738,0.00828483,46935.0,46934.0,0.28067134]
[1641176018939,0.001,46935.0,46934.0,0.28067134]
[1641176019338,0.00728483,46935.0,46934.0,0.28067134]
[1641176019538,0.00728483,46936.0,46934.0,0.43167134]
[1641176019938,0.00728483,46935.0,46934.0,0.43167134]
[1641176020340,0.00828483,46935.0,46934.0,0.43167134]
[1641176020842,0.001,46935.0,46934.0,0.43167134]
[1641176021039,0.00828483,46935.0,46934.0,0.43167134]
[1641176021339,0.00828483,46935.0,46934.0,0.28067134]
[1641176021540,0.001,46935.0,46934.0,0.43367134]
[1641176021940,0.00728483,46935.0,46934.0,0.43367134]
[1641176022142,0.00728483,46937.0,46934.0,0.43367134]
[1641176022342,0.00728483,46935.0,46934.0,0.43367134]
[1641176022641,0.00728483,46938.0,46934.0,0.43367134]
[1641176022940,0.00828483,46935.0,46934.0,0.28067134]
[1641176023343,0.001,46935.0,46934.0,0.28067134]
[1641176023542,0.00828483,46935.0,46934.0,0.43367134]
[1641176023742,0.001,46935.0,46934.0,0.43367134]
[1641176024169,0.00828483,46935.0,46934.0,0.43367134]
[1641176024768,0.00828483,46935.0,46934.0,0.28067134]
[1641176025469,0.00828483,46935.0,46934.0,0.43367134]
[1641176026768,0.00828483,46935.0,46934.0,0.28067134]
[1641176026969,0.34904258,46938.0,46934.0,0.46067134]
[1641176027169,0.34904258,46938.0,46937.0,0.18]
[1641176027571,0.34904258,46939.0,46934.0,0.46377085]
[1641176028271,0.34904258,46939.0,46934.0,0.45397685]
[1641176028471,0.00630509,46938.0,46934.0,0.45397685]
[1641176028869,0.00630509,46941.0,46934.0,0.30197685]
[1641176029069,0.00630509,46937.0,46934.0,0.30197685]
[1641176029269,0.00630509,46940.0,46934.0,0.30197685]
[1641176029469,0.00630509,46936.0,46934.0,0.62997685]
[1641176029670,0.00630509,46939.0,46934.0,0.62997685]
[1641176030071,0.00630509,46935.0,46934.0,0.62997685]
[1641176030269,0.00630509,46938.0,46934.0,0.62997685]
[1641176030470,0.00630509,46935.0,46934.0,0.64206255]
[1641176030669,0.00630509,46937.0,46934.0,0.62997685]
[1641176030870,0.34904258,46941.0,46934.0,0.62997685]
[1641176030871,0.00630509,46935.0,46934.0,0.31406252]
[1641176031271,0.81552534,46935.0,46934.0,1.51120763]
[1641176031471,0.82183043,46935.0,46934.0,1.67629338]
[1641176031970,0.00630509,46935.0,46934.0,1.67629338]
[1641176032371,0.11649443,46935.0,46934.0,1.67629338]
[1641176032771,0.11649443,46935.0,46934.0,1.52329338]
[1641176033474,0.11649443,46935.0,46934.0,1.69129338]
[1641176034273,0.11649443,46935.0,46934.0,1.87129338]
[1641176034472,0.11649443,46935.0,46934.0,1.69129338]
[1641176034871,0.11649443,46935.0,46934.0,1.24262204]
[1641176035373,0.11649443,46935.0,46934.0,1.38295771]
[1641176035574,0.11649443,46935.0,46934.0,1.53887196]
[1641176036174,0.11649443,46935.0,46934.0,0.32964118]
[1641176036975,0.11649443,46935.0,46934.0,0.16164118]
[1641176037476,0.11649443,46935.0,46934.0,0.32964118]
[1641176038275,0.11649443,46935.0,46934.0,0.45049869]
[1641176038776,0.11649443,46935.0,46934.0,0.28249869]
[1641176039377,0.11649443,46935.0,46934.0,1.49172947]
[1641176039580,0.20945443,46935.0,46934.0,1.51756645]
[1641176040679,0.24205443,46935.0,46934.0,1.51756645]
[1641176040881,0.24205443,46935.0,46934.0,0.14033567]
[1641176041079,0.30205443,46935.0,46934.0,0.14033567]
[1641176041481,0.67355443,46935.0,46934.0,0.26633567]
[1641176042281,0.67355443,46935.0,46934.0,0.126]
[1641176042684,0.46105443,46935.0,46934.0,0.126]
[1641176043581,0.46405443,46935.0,46934.0,0.007]
[1641176045385,0.46405443,46935.0,46923.0,1.20923078]
[1641176045587,0.001,46930.0,46923.0,1.20923078]
[1641176045785,0.001,46925.0,46923.0,1.20923078]
[1641176045986,0.001,46924.0,46923.0,1.20923078]
[1641176046385,0.00730509,46924.0,46923.0,1.20923078]
[1641176047086,0.11749443,46924.0,46923.0,0.84631071]
[1641176047485,0.11749443,46924.0,46923.0,1.01131071]
[1641176048786,0.11749443,46924.0,46923.0,0.84631071]
[1641176049586,0.11749443,46924.0,46923.0,1.01231071]
[1641176050886,0.11749443,46924.0,46923.0,0.84631071]
[1641176051589,0.11749443,46924.0,46923.0,0.166]
[1641176052889,0.11749443,46924.0,46921.0,0.84631071]
[1641176053091,0.11649443,46924.0,46921.0,0.84631071]
[1641176053291,0.00630509,46923.0,46921.0,0.84631071]
[1641176053491,0.00630509,46923.0,46921.0,1.01231071]
[1641176054694,0.11018934,46922.0,46921.0,0.166]
[1641176054893,0.11018934,46922.0,46920.0,1.34956645]
[1641176055095,0.11649443,46922.0,46920.0,1.34956645]
[1641176055493,0.00630509,46921.0,46920.0,1.51656645]
[1641176055994,0.11649443,46921.0,46920.0,1.51656645]
[1641176057698,0.11649443,46921.0,46920.0,1.6374529]
[1641176057895,0.11649443,46921.0,46920.0,1.64954155]
[1641176058097,0.92961019,46921.0,46920.0,1.64954155]
[1641176058295,0.92961019,46921.0,46920.0,1.51656645]
[1641176058695,0.92961019,46921.0,46920.0,0.31942463]
[1641176058896,0.93061019,46921.0,46920.0,0.14033567]
[1641176059495,0.93061019,46921.0,46920.0,0.30633567]
[1641176059897,0.11749443,46921.0,46920.0,0.30633567]
[1641176061097,0.11749443,46921.0,46920.0,0.14033567]
[1641176061497,0.27649443,46921.0,46920.0,0.27333567]
[1641176062099,0.27649443,46921.0,46920.0,0.87790562]
[1641176063001,0.27649443,46921.0,46920.0,0.74490562]
[1641176063002,0.11749443,46921.0,46920.0,0.74490562]
[1641176063603,0.28049443,46921.0,46920.0,0.74490562]
[1641176064805,0.11749443,46921.0,46920.0,0.74490562]
[1641176065523,0.29449443,46921.0,46920.0,0.74490562]
[1641176066426,0.29449443,46921.0,46920.0,0.14033567]
[1641176066824,0.11749443,46921.0,46920.0,0.14033567]
[1641176067526,0.29449443,46921.0,46920.0,0.14033567]
[1641176068926,0.11749443,46921.0,46920.0,0.14033567]
[1641176069627,0.31581451,46921.0,46920.0,0.14033567]
[1641176069828,0.52831451,46921.0,46919.0,0.02]
[1641176070027,0.001,46920.0,46919.0,0.02]
[1641176070429,0.00730509,46920.0,46916.0,0.84642541]
[1641176070627,0.181,46917.0,46914.0,0.22453159]
[1641176070827,0.001,46915.0,46914.0,0.22453159]
[1641176071027,0.001,46915.0,46913.0,0.84646144]
[1641176071229,0.181,46914.0,46913.0,0.84646144]
[1641176071427,0.18730509,46914.0,46913.0,0.84646144]
[1641176071829,0.18730509,46914.0,46908.0,1.33015386]
[1641176072130,0.001,46909.0,46906.0,0.14033567]
[1641176072329,0.001,46907.0,46906.0,0.14033567]
[1641176072932,0.00730509,46907.0,46906.0,0.14033567]
[1641176073530,0.17930509,46907.0,46906.0,0.30233567]
[1641176075035,0.00730509,46907.0,46906.0,0.14033567]
[1641176075636,0.18030509,46907.0,46906.0,0.30233567]
[1641176076934,0.00730509,46907.0,46906.0,0.14033567]
[1641176077133,0.00630509,46907.0,46906.0,0.14033567]
[1641176077334,0.00630509,46907.0,46906.0,0.16165354]
[1641176077535,0.173,46907.0,46906.0,0.30333567]
[1641176077733,0.17930509,46907.0,46906.0,0.30333567]
[1641176077935,0.17930509,46907.0,46906.0,0.39974304]
[1641176078136,0.17930509,46907.0,46906.0,0.37842567]
[1641176078734,0.17930509,46907.0,46906.0,1.70857953]
[1641176078934,0.00630509,46907.0,46906.0,1.54557953]
[1641176079434,0.00630509,46907.0,46906.0,1.56689757]
[1641176079634,0.00630509,46907.0,46906.0,0.41974371]
[1641176080739,0.00630509,46908.0,46906.0,0.41974371]
[1641176080939,0.00630509,46907.0,46906.0,0.23674371]
[1641176081240,0.00630509,46907.0,46906.0,0.16165371]
[1641176081440,0.00630509,46909.0,46906.0,0.16165371]
[1641176081739,5.09e-06,46907.0,46906.0,0.34465371]
[1641176081939,0.81051883,46913.0,46906.0,0.32333567]
[1641176082139,1.8061,46924.0,46912.0,0.32033567]
[1641176082342,1.39480175,46921.0,46917.0,0.18]
[1641176082539,1.39480175,46921.0,46917.0,0.26916]
[1641176082743,1.39480175,46921.0,46920.0,0.18]
[1641176083141,1.17641826,46929.0,46920.0,0.52091992]
[1641176083343,1.17641826,46929.0,46926.0,0.18]
[1641176084144,1.17641826,46929.0,46928.0,0.28067134]
[1641176084543,1.17641826,46938.0,46928.0,0.28067134]
[1641176084742,0.18,46937.0,46928.0,0.28067134]
[1641176084943,1.17641826,46938.0,46928.0,0.28067134]
[1641176085343,0.18,46937.0,46928.0,0.28067134]
[1641176085743,0.14033567,46939.0,46928.0,0.28067134]
[1641176085946,0.18,46937.0,46928.0,0.28067134]
[1641176087147,0.14033567,46939.0,46928.0,0.28067134]
[1641176087346,0.14033567,46939.0,46929.0,0.009794]
[1641176087549,0.18,46937.0,46929.0,0.009794]
[1641176088651,1.39271856,46933.0,46929.0,0.009794]
[1641176089752,1.39271856,46933.0,46929.0,0.180794]
[1641176091057,1.39271856,46933.0,46929.0,0.009794]
[1641176091457,1.39271856,46933.0,46928.0,0.28067134]
[1641176092058,1.39271856,46932.0,46928.0,0.28067134]
[1641176093760,1.39271856,46932.0,46928.0,0.44467134]
[1641176095362,1.39271856,46932.0,46928.0,0.28067134]
[1641176095761,1.39271856,46933.0,46928.0,0.46667134]
[1641176097165,1.39271856,46933.0,46928.0,0.28067134]
[1641176097662,1.39271856,46933.0,46928.0,0.39067134]
[1641176098262,0.14033567,46939.0,46928.0,0.39067134]
[1641176098263,1.39271856,46934.0,46928.0,0.39067134]
[1641176098464,0.00545033,46932.0,46928.0,0.39067134]
[1641176098765,0.00545033,46933.0,46928.0,0.39067134]
[1641176099180,0.00545033,46931.0,46928.0,0.39067134]
[1641176099380,0.00545033,46932.0,46928.0,0.39067134]
[1641176099581,0.00545033,46930.0,46928.0,0.88512976]
[1641176099781,0.00545033,46930.0,46928.0,1.08312976]
[1641176099981,0.00545033,46933.0,46928.0,1.08312976]
[1641176100181,0.00545033,46929.0,46928.0,1.08312976]
[1641176100382,0.09921163,46929.0,46928.0,1.08312976]
[1641176100780,0.0937613,46929.0,46928.0,1.08312976]
[1641176100981,0.09921163,46929.0,46928.0,0.88512976]
[1641176101781,0.09921163,46929.0,46928.0,1.08412976]
[1641176101983,0.09921163,46929.0,46928.0,1.26412976]
[1641176102181,0.09921163,46929.0,46928.0,1.28543764]
[1641176102583,0.09921163,46929.0,46928.0,1.60303364]
[1641176102981,0.09921163,46929.0,46928.0,1.40403364]
[1641176103384,0.09921163,46929.0,46928.0,0.79957522]
[1641176103584,0.09921163,46929.0,46928.0,0.81166248]
[1641176103886,0.91284846,46929.0,46928.0,1.00966248]
[1641176104083,0.91284846,46929.0,46928.0,2.21870181]
[1641176104784,1.39271856,46938.0,46934.0,0.42537439]
[1641176104984,1.39271856,46938.0,46937.0,0.18]
[1641176105185,1.39271856,46938.0,46935.0,0.329998]
[1641176105587,1.39271856,46938.0,46935.0,0.009794]
[1641176105788,0.001,46936.0,46935.0,0.207794]
[1641176105988,0.001,46936.0,46935.0,0.198]
[1641176106388,0.00571604,46936.0,46935.0,0.198]
[1641176107088,0.00571604,46936.0,46928.0,0.30197637]
[1641176107288,0.00471604,46936.0,46935.0,0.362633]
[1641176107487,0.001,46936.0,46935.0,0.362633]
[1641176109692,0.001,46936.0,46935.0,0.542633]
[1641176110194,0.001,46936.0,46935.0,0.18]
[1641176110994,0.001,46936.0,46933.0,0.60438833]
[1641176111194,0.18,46938.0,46928.0,0.28067134]
[1641176112495,0.34860505,46935.0,46928.0,0.28067134]
[1641176114001,0.18,46930.0,46928.0,0.14033567]
[1641176115506,0.52860505,46930.0,46928.0,0.14033567]
[1641176115705,0.71260505,46930.0,46928.0,0.26833567]
[1641176116004,0.53260505,46930.0,46928.0,0.26833567]
[1641176116205,0.18,46929.0,46928.0,0.26833567]
[1641176116405,0.53260505,46930.0,46928.0,0.26833567]
[1641176117008,0.34860505,46931.0,46928.0,0.14033567]
[1641176117708,0.54060505,46931.0,46928.0,0.14033567]
[1641176118811,0.06,46929.0,46928.0,0.14033567]
[1641176119009,0.18,46929.0,46928.0,0.14033567]
[1641176119412,0.34860505,46931.0,46928.0,0.14033567]
[1641176119812,0.188,46929.0,46928.0,0.25233567]
[1641176121017,0.368,46929.0,46928.0,0.25233567]
[1641176121217,0.34860505,46930.0,46928.0,0.14033567]
[1641176121417,0.34860505,46931.0,46928.0,0.14033567]
[1641176121819,0.188,46930.0,46928.0,0.15333567]
[1641176122317,0.18,46929.0,46928.0,0.15333567]
[1641176122719,0.1847228,46929.0,46928.0,0.15333567]
[1641176122918,0.0047228,46929.0,46928.0,0.15333567]
[1641176123118,0.1847228,46929.0,46928.0,0.14033567]
[1641176123319,0.0047228,46929.0,46928.0,0.14033567]
[1641176123719,0.1917228,46929.0,46928.0,0.26733567]
[1641176124220,0.3717228,46929.0,46928.0,0.26733567]
[1641176124422,0.46239584,46929.0,46928.0,0.26733567]
[1641176124819,0.46239584,46929.0,46928.0,0.127]
[1641176125021,0.27539584,46929.0,46926.0,0.362633]
[1641176125430,0.0047228,46928.0,46926.0,0.362633]
[1641176125632,0.0732028,46928.0,46925.0,0.362633]
[1641176126034,0.001,46926.0,46925.0,0.362633]
[1641176126234,0.181,46926.0,46925.0,0.362633]
[1641176126434,0.1857228,46926.0,46925.0,0.362633]
[1641176126836,0.1857228,46926.0,46922.0,0.362633]
[1641176127037,0.001,46923.0,46922.0,0.362633]
[1641176127236,0.181,46923.0,46922.0,0.362633]
[1641176127437,0.1857228,46923.0,46922.0,0.362633]
[1641176127838,0.3737228,46923.0,46921.0,0.362633]
[1641176128037,0.001,46922.0,46921.0,0.362633]
[1641176128237,0.0057228,46922.0,46921.0,0.362633]
[1641176128839,0.0047228,46922.0,46921.0,0.362633]
[1641176129440,0.09539584,46922.0,46921.0,0.362633]
[1641176129643,0.09067304,46922.0,46921.0,0.362633]
[1641176129842,0.09539584,46922.0,46921.0,0.550633]
[1641176130444,0.09539584,46922.0,46921.0,0.188]
[1641176130848,0.09539584,46922.0,46921.0,1.03246395]
[1641176131043,0.27539584,46922.0,46921.0,0.84446395]
[1641176131246,0.09539584,46922.0,46921.0,0.84446395]
[1641176131844,0.46339584,46922.0,46921.0,0.84446395]
[1641176132045,0.46339584,46922.0,46920.0,0.36268083]
[1641176132646,0.0047228,46921.0,46920.0,0.36268083]
[1641176133045,0.09067304,46922.0,46920.0,0.36268083]
[1641176133248,0.09067304,46921.0,46919.0,0.36268083]
[1641176133447,0.09539369,46921.0,46919.0,0.36268083]
[1641176133847,0.00472065,46920.0,46919.0,0.36268083]
[1641176134045,0.00472065,46920.0,46918.0,0.60446805]
[1641176135048,0.09067304,46919.0,46918.0,0.60446805]
[1641176135752,0.28039369,46919.0,46918.0,0.70146805]
[1641176137249,0.09539369,46919.0,46918.0,0.60446805]
[1641176137749,0.09539369,46919.0,46918.0,0.79846805]
[1641176138654,0.27539369,46919.0,46918.0,0.79846805]
[1641176139054,0.27539369,46919.0,46918.0,0.60446805]
[1641176139455,0.27539369,46919.0,46917.0,0.60446805]
[1641176139855,0.45767304,46919.0,46918.0,0.137]
[1641176140658,0.367,46919.0,46918.0,0.137]
[1641176141057,0.18,46924.0,46917.0,0.60446805]
[1641176141258,1.57271856,46924.0,46916.0,0.60446805]
[1641176141859,1.75871856,46924.0,46916.0,0.60446805]
[1641176142460,0.366,46924.0,46916.0,1.448932]
[1641176142662,0.366,46924.0,46917.0,0.60446805]
[1641176143260,0.34811063,46921.0,46915.0,0.14033567]
[1641176143661,0.18,46919.0,46915.0,0.14033567]
[1641176145862,0.367,46919.0,46915.0,0.23433567]
[1641176147265,0.18,46919.0,46915.0,0.14033567]
[1641176147465,0.52811063,46919.0,46915.0,0.14033567]
[1641176147868,0.71811063,46919.0,46915.0,0.14033567]
[1641176149267,0.52811063,46919.0,46915.0,0.14033567]
[1641176149869,0.34811063,46917.0,46915.0,0.14033567]
[1641176150773,0.34811063,46916.0,46915.0,0.14033567]
[1641176151872,0.53711063,46916.0,46915.0,0.26333567]
[1641176152878,0.53811063,46916.0,46915.0,0.26333567]
[1641176153079,0.53811063,46916.0,46915.0,0.123]
[1641176153277,0.34911063,46916.0,46908.0,0.14033567]
[1641176153477,0.001,46911.0,46908.0,0.14033567]
[1641176153677,0.001,46909.0,46908.0,0.14033567]
[1641176154679,0.42736145,46909.0,46908.0,0.14033567]
[1641176154979,0.51925007,46909.0,46908.0,0.14033567]
[1641176155583,0.43208531,46909.0,46908.0,0.14033567]
[1641176155879,0.62008531,46909.0,46908.0,0.14033567]
[1641176156080,0.19372386,46909.0,46908.0,0.14033567]
[1641176156280,0.19372386,46909.0,46901.0,4.48250372]
[1641176156281,0.37372386,46909.0,46901.0,0.74480372]
[1641176156484,2.46444069,46903.0,46896.0,0.59000372]
[1641176156781,0.001,46898.0,46896.0,0.59000372]
[1641176156982,0.18,46901.0,46897.0,0.01209417]
[1641176157183,0.00472386,46897.0,46896.0,0.59000372]
[1641176157382,0.00572386,46897.0,46892.0,0.60290674]
[1641176157582,0.001,46893.0,46892.0,2.23241147]
[1641176157782,0.001,46893.0,46892.0,1.62950473]
[1641176157783,0.07553,46893.0,46892.0,1.62950473]
[1641176158292,0.07553,46893.0,46892.0,1.64160022]
[1641176158486,0.08037729,46893.0,46892.0,0.19090655]
[1641176158687,0.22071296,46893.0,46892.0,0.19090655]
[1641176158986,0.22071296,46893.0,46892.0,0.01209549]
[1641176158987,0.31591057,46893.0,46892.0,0.01209549]
[1641176159490,0.3372429,46893.0,46892.0,0.01209549]
[1641176159790,0.5252429,46893.0,46892.0,0.01209549]
[1641176159990,0.5252429,46893.0,46890.0,0.0002]
[1641176160192,0.181,46891.0,46890.0,0.0002]
[1641176160393,0.42838057,46893.0,46890.0,0.0002]
[1641176160594,0.00484729,46892.0,46890.0,0.1802]
[1641176160795,0.00484729,46892.0,46890.0,0.0002]
[1641176161394,0.181,46891.0,46890.0,0.01229625]
[1641176161694,0.001,46891.0,46890.0,0.01229625]
[1641176161894,0.001,46891.0,46890.0,0.0002]
[1641176162095,0.00584729,46891.0,46890.0,0.01229625]
[1641176162694,0.00584729,46891.0,46890.0,0.0002]
[1641176162695,0.1240785,46891.0,46890.0,0.0002]
[1641176163094,0.1240785,46891.0,46890.0,0.01229625]
[1641176163496,0.1240785,46891.0,46890.0,0.0002]
[1641176163996,0.3130785,46891.0,46890.0,0.0002]
[1641176164197,0.4930785,46891.0,46890.0,0.0002]
[1641176164398,0.3130785,46891.0,46890.0,0.0002]
[1641176164798,0.29174461,46891.0,46890.0,0.0002]
[1641176164998,0.29074461,46891.0,46890.0,0.1802]
[1641176165198,0.10174461,46891.0,46890.0,0.1802]
[1641176165501,0.10174461,46891.0,46890.0,0.0002]
[1641176165698,0.10174461,46891.0,46890.0,0.01229625]
[1641176165900,0.10174461,46891.0,46890.0,0.0002]
[1641176166099,0.10174461,46891.0,46890.0,0.01229625]
[1641176166300,0.10174461,46891.0,46890.0,0.1802]
[1641176166501,0.00484729,46891.0,46890.0,0.1802]
[1641176166701,0.00484729,46891.0,46890.0,0.19229625]
[1641176166901,0.00484729,46892.0,46890.0,0.19229625]
[1641176167102,0.00484729,46892.0,46891.0,0.18]
[1641176167300,0.95045879,46893.0,46891.0,0.18]
[1641176167501,0.14033567,46893.0,46891.0,0.01209625]
[1641176167702,0.14033567,46893.0,46892.0,0.01209625]
[1641176168302,0.14033567,46893.0,46891.0,0.19]
[1641176168504,0.14033567,46893.0,46892.0,0.01209625]
[1641176168903,0.14033567,46893.0,46892.0,0.19209625]
[1641176169103,0.14033567,46893.0,46892.0,0.01209625]
[1641176169504,0.14033567,46893.0,46890.0,0.0002]
[1641176169705,0.14033567,46893.0,46892.0,0.01209625]
[1641176169904,0.14033567,46893.0,46892.0,0.188]
[1641176170304,0.14033567,46893.0,46892.0,0.20009625]
[1641176170705,0.24161278,46893.0,46892.0,0.20009625]
[1641176170907,0.24161278,46893.0,46892.0,0.38009625]
[1641176171109,0.24161278,46893.0,46892.0,0.19209625]
[1641176171308,0.24161278,46893.0,46892.0,0.01209625]
[1641176171705,0.14033567,46893.0,46890.0,0.01229625]
[1641176171905,0.14033567,46893.0,46892.0,0.188]
[1641176172205,0.14033567,46893.0,46892.0,0.20009625]
[1641176173105,0.14033567,46893.0,46892.0,0.01209625]
[1641176173610,1.05166501,46893.0,46892.0,0.01209625]
[1641176173808,1.05166501,46893.0,46890.0,0.0002]
[1641176174009,1.05166501,46893.0,46892.0,0.188]
[1641176174409,1.05166501,46893.0,46892.0,0.20009625]
[1641176174808,1.05166501,46893.0,46892.0,0.188]
[1641176175009,0.95045879,46893.0,46892.0,0.188]
[1641176175210,0.14033567,46893.0,46890.0,0.0002]
[1641176176010,0.31333567,46893.0,46890.0,0.1852]
[1641176177310,0.14033567,46893.0,46890.0,0.0002]
[1641176177911,0.32933567,46893.0,46890.0,0.1312]
[1641176179214,0.14033567,46893.0,46890.0,0.0002]
[1641176180112,0.32833567,46893.0,46890.0,0.1502]
[1641176181312,0.14033567,46893.0,46890.0,0.0002]
[1641176181814,0.32933567,46893.0,46890.0,0.0002]
[1641176182313,0.00635529,46892.0,46890.0,0.0002]
[1641176183915,0.19735529,46892.0,46890.0,0.0002]
[1641176184414,0.00635529,46891.0,46890.0,0.0002]
[1641176184615,0.00635529,46891.0,46890.0,0.01229678]
[1641176184815,0.00635529,46891.0,46890.0,0.0002]
[1641176185215,0.14033567,46893.0,46890.0,0.0002]
[1641176185714,0.0063552,46891.0,46890.0,0.0002]
[1641176186116,0.0063552,46892.0,46890.0,0.1802]
[1641176186316,0.0063552,46892.0,46890.0,0.27451]
[1641176186516,0.32933567,46893.0,46890.0,0.27451]
[1641176187418,0.14033567,46893.0,46890.0,0.27451]
[1641176187917,0.14033567,46893.0,46891.0,0.01209571]
[1641176189019,0.1115385,46892.0,46891.0,0.01209571]
[1641176189221,0.92166162,46892.0,46891.0,1.21785432]
[1641176189921,0.92166162,46892.0,46891.0,1.41085432]
[1641176191221,0.92166162,46892.0,46891.0,1.21785432]
[1641176191623,0.1115385,46892.0,46891.0,0.01209571]
[1641176192024,0.1115385,46892.0,46891.0,0.38509571]
[1641176193222,0.1115385,46892.0,46891.0,0.19209571]
[1641176193922,0.1115385,46892.0,46891.0,0.38509571]